[Event "Late-Titled-Tuesday-Blitz-February-06-2024"]
[Site "Chess.com"]
[Date "2024.02.06"]
[Round "11"]
[White "Korchmar_Vasiliy"]
[Black "igorkovalenko"]
[Result "0-1"]
[WhiteElo "2731"]
[BlackElo "2998"]
[TimeControl "180+1"]
[EndTime "16:04:50 PST"]
[Termination "igorkovalenko won on time"]

1. e4 {[%clk 0:03:00.9]} 1... c5 {[%clk 0:01:52.1]} 2. d4 {[%clk 0:03:00.3]}
2... cxd4 {[%clk 0:01:52.2]} 3. Qxd4 {[%clk 0:03:01.2]} 3... Nc6 {[%clk
0:01:52.2]} 4. Qd3 {[%clk 0:03:01.5]} 4... g6 {[%clk 0:01:52.9]} 5. Nc3 {[%clk
0:03:01.4]} 5... Bg7 {[%clk 0:01:53.8]} 6. Nf3 {[%clk 0:03:01.7]} 6... d6 {[%clk
0:01:54.3]} 7. Be2 {[%clk 0:03:02.1]} 7... Nf6 {[%clk 0:01:53.2]} 8. O-O {[%clk
0:03:02.4]} 8... O-O {[%clk 0:01:53.8]} 9. Nd5 {[%clk 0:03:02.9]} 9... Nd7
{[%clk 0:01:53.3]} 10. c3 {[%clk 0:02:58.6]} 10... Nc5 {[%clk 0:01:38]} 11. Qc2
{[%clk 0:02:58.4]} 11... e6 {[%clk 0:01:35.5]} 12. Ne3 {[%clk 0:02:57.1]} 12...
Qe7 {[%clk 0:01:31.5]} 13. Rd1 {[%clk 0:02:53.3]} 13... Rd8 {[%clk 0:01:31]} 14.
Nc4 {[%clk 0:02:46.9]} 14... b5 {[%clk 0:01:30.1]} 15. Ne3 {[%clk 0:02:31.5]}
15... a6 {[%clk 0:01:30.5]} 16. Ng4 {[%clk 0:02:18.7]} 16... h5 {[%clk
0:01:29.6]} 17. Nh6+ {[%clk 0:02:17.3]} 17... Kf8 {[%clk 0:01:28.3]} 18. h4
{[%clk 0:02:03.9]} 18... Bb7 {[%clk 0:01:26.4]} 19. Bg5 {[%clk 0:02:02.8]} 19...
f6 {[%clk 0:01:22.9]} 20. Be3 {[%clk 0:02:03.4]} 20... Ne5 {[%clk 0:01:20.6]}
21. Nxe5 {[%clk 0:01:52]} 21... dxe5 {[%clk 0:01:20.3]} 22. Rxd8+ {[%clk
0:01:46.1]} 22... Rxd8 {[%clk 0:01:19.8]} 23. Rd1 {[%clk 0:01:46.8]} 23... Rxd1+
{[%clk 0:01:17.6]} 24. Qxd1 {[%clk 0:01:45.1]} 24... Nxe4 {[%clk 0:01:16.4]} 25.
Bf3 {[%clk 0:01:43.7]} 25... Bxh6 {[%clk 0:01:14.6]} 26. Bxh6+ {[%clk
0:01:43.5]} 26... Kf7 {[%clk 0:01:15]} 27. Bxh5 {[%clk 0:01:12.8]} 27... f5
{[%clk 0:01:01.5]} 28. g3 {[%clk 0:00:23.8]} 28... Nf6 {[%clk 0:00:30.9]} 29.
Bf3 {[%clk 0:00:18.8]} 29... Bxf3 {[%clk 0:00:30.4]} 30. Qxf3 {[%clk 0:00:19.7]}
30... e4 {[%clk 0:00:27.6]} 31. Qd1 {[%clk 0:00:18.9]} 31... Qd7 {[%clk
0:00:26.6]} 32. Qc1 {[%clk 0:00:11.8]} 32... e5 {[%clk 0:00:25.1]} 33. Bg5
{[%clk 0:00:11.3]} 33... Ng4 {[%clk 0:00:25.2]} 34. c4 {[%clk 0:00:03.3]} 34...
Qc6 {[%clk 0:00:15.2]} 35. c5 {[%clk 0:00:02.7]} 35... Nf6 {[%clk 0:00:13.3]}
0-1

[Event "Late-Titled-Tuesday-Blitz-February-06-2024"]
[Site "Chess.com"]
[Date "2024.02.06"]
[Round "11"]
[White "Kostukov_Alex"]
[Black "abeljusto"]
[Result "1-0"]
[WhiteElo "2275"]
[BlackElo "2098"]
[TimeControl "180+1"]
[EndTime "16:04:57 PST"]
[Termination "Kostukov_Alex won on time"]

1. e4 {[%clk 0:03:00.9]} 1... c5 {[%clk 0:02:59.6]} 2. Nf3 {[%clk 0:03:01]} 2...
Nc6 {[%clk 0:02:59.5]} 3. d4 {[%clk 0:03:01.3]} 3... cxd4 {[%clk 0:02:59.7]} 4.
Nxd4 {[%clk 0:03:01.8]} 4... Nf6 {[%clk 0:03:00.1]} 5. Nc3 {[%clk 0:03:01.4]}
5... d6 {[%clk 0:03:00.3]} 6. Be3 {[%clk 0:02:59]} 6... Ng4 {[%clk 0:02:58.9]}
7. Bg5 {[%clk 0:02:55.4]} 7... h6 {[%clk 0:02:57.2]} 8. Bh4 {[%clk 0:02:54.7]}
8... g5 {[%clk 0:02:57.2]} 9. Bg3 {[%clk 0:02:55]} 9... Bg7 {[%clk 0:02:57.5]}
10. Nxc6 {[%clk 0:02:52]} 10... bxc6 {[%clk 0:02:58.4]} 11. Bc4 {[%clk
0:02:43.1]} 11... Ne5 {[%clk 0:02:55.2]} 12. Bb3 {[%clk 0:02:41.1]} 12... O-O
{[%clk 0:02:51.7]} 13. Qe2 {[%clk 0:02:34.1]} 13... a5 {[%clk 0:02:50.9]} 14. a4
{[%clk 0:02:29.9]} 14... Ba6 {[%clk 0:02:46.9]} 15. Qh5 {[%clk 0:02:29.5]} 15...
Qd7 {[%clk 0:02:17.2]} 16. h4 {[%clk 0:02:21.5]} 16... g4 {[%clk 0:02:16.2]} 17.
Bf4 {[%clk 0:02:11.3]} 17... Kh7 {[%clk 0:02:02.9]} 18. O-O-O {[%clk 0:02:00.4]}
18... Rab8 {[%clk 0:01:56.1]} 19. f3 {[%clk 0:01:39.1]} 19... Ng6 {[%clk
0:01:38.5]} 20. Bd2 {[%clk 0:01:24.9]} 20... Rxb3 {[%clk 0:01:21.3]} 21. cxb3
{[%clk 0:01:23.1]} 21... Qe6 {[%clk 0:01:07.6]} 22. fxg4 {[%clk 0:01:17.7]}
22... Qxb3 {[%clk 0:01:06.4]} 23. Bxh6 {[%clk 0:01:04.5]} 23... Bxh6+ {[%clk
0:00:56.7]} 24. g5 {[%clk 0:01:04.2]} 24... Rb8 {[%clk 0:00:48.6]} 25. Qxh6+
{[%clk 0:01:01.3]} 25... Kg8 {[%clk 0:00:48]} 26. Rd2 {[%clk 0:00:56.7]} 26...
Nf4 {[%clk 0:00:35.6]} 27. g6 {[%clk 0:00:38.6]} 27... Nxg6 {[%clk 0:00:28.2]}
28. h5 {[%clk 0:00:31.2]} 28... Ne5 {[%clk 0:00:27.9]} 29. Qg5+ {[%clk
0:00:23.6]} 29... Kf8 {[%clk 0:00:27.9]} 30. Qe3 {[%clk 0:00:19.1]} 30... Nc4
{[%clk 0:00:25.6]} 31. Qf2 {[%clk 0:00:18.4]} 31... Nxd2 {[%clk 0:00:16.9]} 32.
Qxd2 {[%clk 0:00:18.1]} 32... f6 {[%clk 0:00:12.5]} 33. h6 {[%clk 0:00:18.1]}
33... Kf7 {[%clk 0:00:12.3]} 34. h7 {[%clk 0:00:16.6]} 34... Rh8 {[%clk
0:00:12.3]} 35. Qh6 {[%clk 0:00:14.9]} 35... Bd3 {[%clk 0:00:09.5]} 36. Qh5+
{[%clk 0:00:15]} 36... Kf8 {[%clk 0:00:04.8]} 37. Qh6+ {[%clk 0:00:15.2]} 37...
Kf7 {[%clk 0:00:04.5]} 38. Qd2 {[%clk 0:00:15.4]} 38... Bc4 {[%clk 0:00:01.1]}
39. Re1 {[%clk 0:00:14.9]} 39... Be6 {[%clk 0:00:01]} 40. g4 {[%clk 0:00:14.4]}
40... Rxh7 {[%clk 0:00:01.2]} 41. e5 {[%clk 0:00:14.3]} 1-0

[Event "Late-Titled-Tuesday-Blitz-February-06-2024"]
[Site "Chess.com"]
[Date "2024.02.06"]
[Round "11"]
[White "Attacker_2006"]
[Black "IMSlavin"]
[Result "1-0"]
[WhiteElo "2486"]
[BlackElo "2348"]
[TimeControl "180+1"]
[EndTime "16:05:00 PST"]
[Termination "Attacker_2006 won by resignation"]

1. e4 {[%clk 0:03:00.9]} 1... Nc6 {[%clk 0:02:59.2]} 2. Nf3 {[%clk 0:02:56.3]}
2... d6 {[%clk 0:02:59.5]} 3. d4 {[%clk 0:02:55.4]} 3... Nf6 {[%clk 0:02:59.8]}
4. Nc3 {[%clk 0:02:53.7]} 4... Bg4 {[%clk 0:03:00]} 5. Bb5 {[%clk 0:02:42.9]}
5... a6 {[%clk 0:02:59.4]} 6. Bxc6+ {[%clk 0:02:40.3]} 6... bxc6 {[%clk
0:03:00.3]} 7. h3 {[%clk 0:02:31.3]} 7... Bc8 {[%clk 0:02:59.9]} 8. Be3 {[%clk
0:02:26.5]} 8... e6 {[%clk 0:02:59.9]} 9. Qd2 {[%clk 0:02:23.3]} 9... Be7 {[%clk
0:02:59.3]} 10. O-O {[%clk 0:02:15.8]} 10... h6 {[%clk 0:02:57.7]} 11. Rad1
{[%clk 0:02:08.8]} 11... O-O {[%clk 0:02:57.1]} 12. e5 {[%clk 0:01:37.3]} 12...
Nd5 {[%clk 0:02:56.6]} 13. Nxd5 {[%clk 0:01:34]} 13... cxd5 {[%clk 0:02:56.5]}
14. b3 {[%clk 0:01:26.7]} 14... dxe5 {[%clk 0:02:50.6]} 15. Nxe5 {[%clk
0:01:24.8]} 15... Bf6 {[%clk 0:02:48.6]} 16. c4 {[%clk 0:01:14.1]} 16... Bb7
{[%clk 0:02:39.1]} 17. Ng4 {[%clk 0:00:49.1]} 17... Bg5 {[%clk 0:02:35.3]} 18.
Bxg5 {[%clk 0:00:48.4]} 18... Qxg5 {[%clk 0:02:33.5]} 19. Qxg5 {[%clk
0:00:47.7]} 19... hxg5 {[%clk 0:02:33.6]} 20. c5 {[%clk 0:00:45.8]} 20... a5
{[%clk 0:02:33.5]} 21. Ne5 {[%clk 0:00:44.9]} 21... Rfd8 {[%clk 0:02:30.3]} 22.
Rc1 {[%clk 0:00:43]} 22... Ba6 {[%clk 0:02:29.4]} 23. Rfe1 {[%clk 0:00:41.4]}
23... Bb5 {[%clk 0:02:28.7]} 24. a4 {[%clk 0:00:39.1]} 24... Ba6 {[%clk
0:02:27.3]} 25. Nc6 {[%clk 0:00:35.2]} 25... Re8 {[%clk 0:02:15]} 26. Nxa5
{[%clk 0:00:33.3]} 26... Reb8 {[%clk 0:02:09.8]} 27. Re3 {[%clk 0:00:25.8]}
27... Bb7 {[%clk 0:01:57.2]} 28. Nxb7 {[%clk 0:00:24.7]} 28... Rxb7 {[%clk
0:01:57.4]} 29. Kf1 {[%clk 0:00:23.5]} 29... Rb4 {[%clk 0:01:57.3]} 30. Rd3
{[%clk 0:00:20.9]} 30... c6 {[%clk 0:01:54.2]} 31. Ke2 {[%clk 0:00:20.7]} 31...
Kf8 {[%clk 0:01:53.4]} 32. Ke3 {[%clk 0:00:20.1]} 32... Ke7 {[%clk 0:01:53.3]}
33. Ra1 {[%clk 0:00:19.5]} 33... Kd7 {[%clk 0:01:51]} 34. Rh1 {[%clk 0:00:17.8]}
34... Rh8 {[%clk 0:01:48.2]} 35. g3 {[%clk 0:00:16]} 35... f6 {[%clk 0:01:46.8]}
36. h4 {[%clk 0:00:15]} 36... gxh4 {[%clk 0:01:45.1]} 37. Rxh4 {[%clk
0:00:14.5]} 37... Rhb8 {[%clk 0:01:38.8]} 38. Rh7 {[%clk 0:00:13.4]} 38... Rg8
{[%clk 0:01:37.5]} 39. Kd2 {[%clk 0:00:09.8]} 39... Ke7 {[%clk 0:01:33.7]} 40.
Kc2 {[%clk 0:00:08.2]} 40... Kf7 {[%clk 0:01:33.1]} 41. Kc3 {[%clk 0:00:08]}
41... Rgb8 {[%clk 0:01:32.7]} 42. Kc2 {[%clk 0:00:05.9]} 42... Kg6 {[%clk
0:01:31.9]} 43. Rh1 {[%clk 0:00:06.3]} 43... e5 {[%clk 0:01:31.7]} 44. dxe5
{[%clk 0:00:05.8]} 44... fxe5 {[%clk 0:01:31.7]} 45. f3 {[%clk 0:00:06.4]} 45...
e4 {[%clk 0:01:27.2]} 46. fxe4 {[%clk 0:00:05.5]} 46... Rxe4 {[%clk 0:01:27.7]}
47. Rhd1 {[%clk 0:00:04.7]} 47... Rbb4 {[%clk 0:01:25.9]} 48. Kc3 {[%clk
0:00:02.6]} 48... Rg4 {[%clk 0:01:25.1]} 49. Rd4 {[%clk 0:00:02.2]} 49... Rxg3+
{[%clk 0:01:24.9]} 50. Kxb4 {[%clk 0:00:01.9]} 50... Kf5 {[%clk 0:01:24.9]} 51.
R1d3 {[%clk 0:00:02.8]} 51... Rg2 {[%clk 0:01:24.4]} 52. Rd2 {[%clk 0:00:02.7]}
52... Rg3 {[%clk 0:01:24.3]} 53. R2d3 {[%clk 0:00:03.6]} 53... Rg2 {[%clk
0:01:24.4]} 54. Ka5 {[%clk 0:00:03.8]} 54... Ke5 {[%clk 0:01:24.3]} 55. Kb6
{[%clk 0:00:04.7]} 55... g5 {[%clk 0:01:24]} 56. Rb4 {[%clk 0:00:03.8]} 56... g4
{[%clk 0:01:24.9]} 57. Rdd4 {[%clk 0:00:03.8]} 57... g3 {[%clk 0:01:24.7]} 58.
Rg4 {[%clk 0:00:04.4]} 58... Kf5 {[%clk 0:01:24.7]} 59. Rg7 {[%clk 0:00:04.8]}
59... Ke5 {[%clk 0:01:23.8]} 60. Rbg4 {[%clk 0:00:05.4]} 60... d4 {[%clk
0:01:23.8]} 61. a5 {[%clk 0:00:06.1]} 61... Rb2 {[%clk 0:01:22.7]} 62. Rxg3
{[%clk 0:00:05.9]} 62... Kd5 {[%clk 0:01:21.7]} 63. Rd7+ {[%clk 0:00:05.4]}
63... Ke4 {[%clk 0:01:21.8]} 64. Rg4+ {[%clk 0:00:04.6]} 64... Ke5 {[%clk
0:01:21.8]} 65. Rgxd4 {[%clk 0:00:05.5]} 65... Rxb3+ {[%clk 0:01:22.2]} 66. Kxc6
{[%clk 0:00:05.6]} 66... Ra3 {[%clk 0:01:22.4]} 67. R7d5+ {[%clk 0:00:06.3]} 1-0

[Event "Late-Titled-Tuesday-Blitz-February-06-2024"]
[Site "Chess.com"]
[Date "2024.02.06"]
[Round "11"]
[White "Gryffindorac8"]
[Black "WilsonPalencia21"]
[Result "0-1"]
[WhiteElo "2396"]
[BlackElo "2603"]
[TimeControl "180+1"]
[EndTime "16:05:02 PST"]
[Termination "WilsonPalencia21 won by resignation"]

1. d4 {[%clk 0:03:00.9]} 1... Nf6 {[%clk 0:02:59.8]} 2. c4 {[%clk 0:02:55.1]}
2... c5 {[%clk 0:02:59.9]} 3. d5 {[%clk 0:02:54.7]} 3... e6 {[%clk 0:03:00.1]}
4. Nc3 {[%clk 0:02:54.3]} 4... exd5 {[%clk 0:03:01]} 5. cxd5 {[%clk 0:02:55.2]}
5... d6 {[%clk 0:03:01.2]} 6. Nf3 {[%clk 0:02:53.6]} 6... g6 {[%clk 0:03:01.3]}
7. h3 {[%clk 0:02:53.5]} 7... a6 {[%clk 0:03:01.3]} 8. a4 {[%clk 0:02:52.8]}
8... Bg7 {[%clk 0:03:01.2]} 9. e4 {[%clk 0:02:52.8]} 9... O-O {[%clk 0:03:00.9]}
10. Bd3 {[%clk 0:02:51.5]} 10... Nh5 {[%clk 0:03:00.8]} 11. O-O {[%clk
0:02:47.2]} 11... Re8 {[%clk 0:03:00.9]} 12. Bg5 {[%clk 0:02:29.4]} 12... Bf6
{[%clk 0:03:00.6]} 13. Bxf6 {[%clk 0:02:26.5]} 13... Qxf6 {[%clk 0:03:00]} 14.
Re1 {[%clk 0:02:22.5]} 14... Nd7 {[%clk 0:02:59.8]} 15. Bf1 {[%clk 0:02:10.8]}
15... Ne5 {[%clk 0:02:55.8]} 16. Nxe5 {[%clk 0:02:03.9]} 16... Rxe5 {[%clk
0:02:53.8]} 17. g3 {[%clk 0:01:59]} 17... Bd7 {[%clk 0:02:52.1]} 18. Qd3 {[%clk
0:01:55.8]} 18... Rae8 {[%clk 0:02:42.2]} 19. f4 {[%clk 0:01:53.2]} 19... R5e7
{[%clk 0:02:40.1]} 20. Bg2 {[%clk 0:01:18.2]} 20... Qd4+ {[%clk 0:02:37.9]} 21.
Qxd4 {[%clk 0:01:16.1]} 21... cxd4 {[%clk 0:02:38.8]} 22. Ne2 {[%clk 0:01:16.4]}
22... d3 {[%clk 0:02:36.6]} 23. Nd4 {[%clk 0:01:14.6]} 23... Nxg3 {[%clk
0:02:33]} 24. Re3 {[%clk 0:01:12.9]} 24... Nxe4 {[%clk 0:02:26.7]} 25. Rxd3
{[%clk 0:01:10.7]} 25... Nc5 {[%clk 0:02:21.8]} 26. Rd2 {[%clk 0:01:07.8]} 26...
Re1+ {[%clk 0:02:18.8]} 27. Rxe1 {[%clk 0:01:06.5]} 27... Rxe1+ {[%clk
0:02:18.1]} 28. Kf2 {[%clk 0:01:07.1]} 28... Rb1 {[%clk 0:02:02.5]} 29. a5
{[%clk 0:01:00.3]} 29... Kg7 {[%clk 0:01:53.1]} 30. Ne2 {[%clk 0:00:54.9]} 30...
Nb3 {[%clk 0:01:50.5]} 31. Rc2 {[%clk 0:00:52.2]} 31... Nxa5 {[%clk 0:01:46.8]}
32. Nc3 {[%clk 0:00:44.2]} 32... Ra1 {[%clk 0:01:43.3]} 33. Ne4 {[%clk
0:00:43.6]} 33... Bf5 {[%clk 0:01:40.6]} 34. Rc7 {[%clk 0:00:36.1]} 34... Bxe4
{[%clk 0:01:38]} 35. Bxe4 {[%clk 0:00:37]} 35... Ra2 {[%clk 0:01:36.7]} 36. Rc2
{[%clk 0:00:30.9]} 36... b5 {[%clk 0:01:34.1]} 37. Bd3 {[%clk 0:00:27.7]} 37...
Nb3 {[%clk 0:01:32.6]} 38. Rc6 {[%clk 0:00:17.4]} 38... Rxb2+ {[%clk 0:01:31.7]}
39. Ke3 {[%clk 0:00:17.4]} 39... Nc5 {[%clk 0:01:28.2]} 40. Be2 {[%clk
0:00:14.7]} 40... Rb3+ {[%clk 0:01:25.6]} 41. Kf2 {[%clk 0:00:14.3]} 41... Ne4+
{[%clk 0:01:19.7]} 42. Kg2 {[%clk 0:00:12.1]} 42... Rc3 {[%clk 0:01:16.7]} 43.
Rxa6 {[%clk 0:00:10]} 43... b4 {[%clk 0:01:16.6]} 44. Rb6 {[%clk 0:00:09.7]}
44... b3 {[%clk 0:01:16.6]} 45. Bd1 {[%clk 0:00:09.1]} 45... Nc5 {[%clk
0:01:11.8]} 46. Kf2 {[%clk 0:00:08.2]} 46... Rd3 {[%clk 0:01:11.2]} 47. Ke2
{[%clk 0:00:08.3]} 47... Rxd5 {[%clk 0:01:10.7]} 48. Bxb3 {[%clk 0:00:08.5]}
48... Nxb3 {[%clk 0:01:09.4]} 49. Rxb3 {[%clk 0:00:09.4]} 49... h5 {[%clk
0:01:08.4]} 50. Kf3 {[%clk 0:00:09.7]} 50... Kf6 {[%clk 0:01:07.3]} 51. Rc3
{[%clk 0:00:09.8]} 51... Rc5 {[%clk 0:01:06.9]} 52. Rd3 {[%clk 0:00:09.6]} 52...
d5 {[%clk 0:01:06.3]} 53. Ra3 {[%clk 0:00:10.3]} 53... Kf5 {[%clk 0:01:04.4]}
54. Re3 {[%clk 0:00:10.2]} 54... f6 {[%clk 0:01:03.7]} 55. Ra3 {[%clk
0:00:07.9]} 55... d4 {[%clk 0:01:02.4]} 56. Kf2 {[%clk 0:00:04.8]} 56... Rc2+
{[%clk 0:01:01.3]} 57. Ke1 {[%clk 0:00:01.1]} 57... Kxf4 {[%clk 0:01:01.3]} 58.
Rb3 {[%clk 0:00:01.1]} 58... g5 {[%clk 0:00:58.6]} 59. Ra3 {[%clk 0:00:02]}
59... f5 {[%clk 0:00:58.4]} 60. Kf1 {[%clk 0:00:02.6]} 60... g4 {[%clk
0:00:58.4]} 0-1

[Event "Late-Titled-Tuesday-Blitz-February-06-2024"]
[Site "Chess.com"]
[Date "2024.02.06"]
[Round "11"]
[White "Fandorine"]
[Black "Philippians46"]
[Result "1-0"]
[WhiteElo "2939"]
[BlackElo "2700"]
[TimeControl "180+1"]
[EndTime "16:05:03 PST"]
[Termination "Fandorine won by checkmate"]

1. d4 {[%clk 0:03:00.9]} 1... Nf6 {[%clk 0:03:00]} 2. Nf3 {[%clk 0:03:00.4]}
2... g6 {[%clk 0:03:00.4]} 3. c4 {[%clk 0:02:59.3]} 3... Bg7 {[%clk 0:03:00.7]}
4. Nc3 {[%clk 0:03:00]} 4... d5 {[%clk 0:03:01.1]} 5. cxd5 {[%clk 0:02:55.5]}
5... Nxd5 {[%clk 0:03:02]} 6. e4 {[%clk 0:02:55.6]} 6... Nxc3 {[%clk 0:03:00.3]}
7. bxc3 {[%clk 0:02:56.5]} 7... c5 {[%clk 0:03:01.1]} 8. Bb5+ {[%clk 0:02:56.3]}
8... Nc6 {[%clk 0:02:56.5]} 9. O-O {[%clk 0:02:55.8]} 9... O-O {[%clk
0:02:56.5]} 10. Bxc6 {[%clk 0:02:56.1]} 10... bxc6 {[%clk 0:02:57.4]} 11. Qc2
{[%clk 0:02:56.7]} 11... cxd4 {[%clk 0:02:56.1]} 12. cxd4 {[%clk 0:02:54]} 12...
Bg4 {[%clk 0:02:56.2]} 13. Ne5 {[%clk 0:02:53.4]} 13... Qxd4 {[%clk 0:02:56.6]}
14. Bb2 {[%clk 0:02:53.2]} 14... Qb6 {[%clk 0:02:57.2]} 15. Rfb1 {[%clk
0:02:23.5]} 15... Bxe5 {[%clk 0:02:55]} 16. Bxe5 {[%clk 0:02:21.2]} 16... Qa5
{[%clk 0:02:55.9]} 17. Bc3 {[%clk 0:02:09.4]} 17... Qa6 {[%clk 0:02:56.2]} 18.
h3 {[%clk 0:01:57.3]} 18... Be6 {[%clk 0:02:56.3]} 19. Bb4 {[%clk 0:01:49.8]}
19... Rfe8 {[%clk 0:02:55.7]} 20. Rc1 {[%clk 0:01:44.3]} 20... Rac8 {[%clk
0:02:55.5]} 21. Bc5 {[%clk 0:01:42.4]} 21... Rb8 {[%clk 0:02:54.8]} 22. Qd2
{[%clk 0:01:37.5]} 22... f6 {[%clk 0:02:54.2]} 23. a3 {[%clk 0:01:31.9]} 23...
Rbd8 {[%clk 0:02:53.2]} 24. Qf4 {[%clk 0:01:29.4]} 24... Rd3 {[%clk 0:02:50.1]}
25. Rab1 {[%clk 0:01:20.6]} 25... Qc8 {[%clk 0:02:37.1]} 26. h4 {[%clk
0:01:15.1]} 26... Bf7 {[%clk 0:02:24.6]} 27. Bxe7 {[%clk 0:01:05.4]} 27... f5
{[%clk 0:01:27.7]} 28. Bf6 {[%clk 0:00:46.3]} 28... Rxe4 {[%clk 0:01:27.3]} 29.
Rb8 {[%clk 0:00:31.7]} 29... Rxf4 {[%clk 0:01:27.2]} 30. Rxc8+ {[%clk
0:00:31.6]} 30... Be8 {[%clk 0:01:28.1]} 31. Rxe8+ {[%clk 0:00:28.6]} 31... Kf7
{[%clk 0:01:28.7]} 32. Bg5 {[%clk 0:00:29.2]} 32... Kxe8 {[%clk 0:01:27.7]} 33.
Bxf4 {[%clk 0:00:29.5]} 33... Rxa3 {[%clk 0:01:28.6]} 34. Rxc6 {[%clk
0:00:29.6]} 34... a5 {[%clk 0:01:26.5]} 35. Rc7 {[%clk 0:00:29.3]} 35... a4
{[%clk 0:01:25.3]} 36. Rxh7 {[%clk 0:00:28.2]} 36... Rb3 {[%clk 0:01:25.8]} 37.
Ra7 {[%clk 0:00:28.6]} 37... a3 {[%clk 0:01:26]} 38. Bd6 {[%clk 0:00:28.4]}
38... Rb1+ {[%clk 0:01:25.9]} 39. Kh2 {[%clk 0:00:28.2]} 39... Rb2 {[%clk
0:01:26.8]} 40. Rxa3 {[%clk 0:00:20.5]} 40... Rxf2 {[%clk 0:01:27.1]} 41. Ra7
{[%clk 0:00:19.7]} 41... Re2 {[%clk 0:01:27.2]} 42. Bf4 {[%clk 0:00:19.3]} 42...
Re4 {[%clk 0:01:27]} 43. Kg3 {[%clk 0:00:19.5]} 43... Kf8 {[%clk 0:01:26.6]} 44.
Kf3 {[%clk 0:00:19.9]} 44... Rc4 {[%clk 0:01:26.4]} 45. g3 {[%clk 0:00:20.4]}
45... Rc3+ {[%clk 0:01:26.2]} 46. Ke2 {[%clk 0:00:20.7]} 46... Rb3 {[%clk
0:01:26.1]} 47. Rd7 {[%clk 0:00:20]} 47... Ke8 {[%clk 0:01:26.3]} 48. Rc7 {[%clk
0:00:20.2]} 48... Kf8 {[%clk 0:01:26.1]} 49. Kd2 {[%clk 0:00:19.2]} 49... Ke8
{[%clk 0:01:25.9]} 50. Rg7 {[%clk 0:00:18.8]} 50... Rb6 {[%clk 0:01:26.1]} 51.
Kc3 {[%clk 0:00:19]} 51... Kf8 {[%clk 0:01:26.7]} 52. Rc7 {[%clk 0:00:18.1]}
52... Ke8 {[%clk 0:01:26.1]} 53. Kd4 {[%clk 0:00:17.9]} 53... Kf8 {[%clk
0:01:24.5]} 54. Ke5 {[%clk 0:00:18]} 54... Ra6 {[%clk 0:01:25]} 55. Rd7 {[%clk
0:00:18.2]} 55... Kg8 {[%clk 0:01:22.1]} 56. Rd6 {[%clk 0:00:18.1]} 56... Ra7
{[%clk 0:01:21.9]} 57. Rxg6+ {[%clk 0:00:16.5]} 57... Kh7 {[%clk 0:01:22.3]} 58.
Rd6 {[%clk 0:00:14.4]} 58... Rf7 {[%clk 0:01:22]} 59. Rf6 {[%clk 0:00:13.1]}
59... Re7+ {[%clk 0:01:21.8]} 60. Kxf5 {[%clk 0:00:13.3]} 60... Re1 {[%clk
0:01:22.7]} 61. Kg4 {[%clk 0:00:13.6]} 61... Kg7 {[%clk 0:01:22.9]} 62. Rf5
{[%clk 0:00:14.5]} 62... Ra1 {[%clk 0:01:22.6]} 63. Rg5+ {[%clk 0:00:15.4]}
63... Kh7 {[%clk 0:01:22.6]} 64. Rc5 {[%clk 0:00:16.1]} 64... Ra6 {[%clk
0:01:22.3]} 65. h5 {[%clk 0:00:16.4]} 65... Ra8 {[%clk 0:01:20.9]} 66. Rc7+
{[%clk 0:00:16.9]} 66... Kh8 {[%clk 0:01:20.7]} 67. Be5+ {[%clk 0:00:15.1]}
67... Kg8 {[%clk 0:01:21.2]} 68. h6 {[%clk 0:00:15.7]} 68... Ra4+ {[%clk
0:01:20.7]} 69. Kf5 {[%clk 0:00:15.9]} 69... Kf8 {[%clk 0:01:20.1]} 70. h7
{[%clk 0:00:15.7]} 70... Rh4 {[%clk 0:01:20.2]} 71. gxh4 {[%clk 0:00:15.1]}
71... Ke8 {[%clk 0:01:20.9]} 72. Ke6 {[%clk 0:00:15]} 72... Kd8 {[%clk
0:01:20.6]} 73. h5 {[%clk 0:00:15.4]} 73... Ke8 {[%clk 0:01:20.8]} 74. h6 {[%clk
0:00:15.8]} 74... Kd8 {[%clk 0:01:21.7]} 75. Ra7 {[%clk 0:00:14.3]} 75... Kc8
{[%clk 0:01:22]} 76. h8=Q# {[%clk 0:00:13.4]} 1-0

[Event "Late-Titled-Tuesday-Blitz-February-06-2024"]
[Site "Chess.com"]
[Date "2024.02.06"]
[Round "11"]
[White "JaackCamel"]
[Black "masterofpuppets2"]
[Result "1-0"]
[WhiteElo "2216"]
[BlackElo "2453"]
[TimeControl "180+1"]
[EndTime "16:05:08 PST"]
[Termination "JaackCamel won by checkmate"]

1. d4 {[%clk 0:03:00.9]} 1... d5 {[%clk 0:02:52]} 2. c4 {[%clk 0:03:00.3]} 2...
e6 {[%clk 0:02:51.4]} 3. Nc3 {[%clk 0:03:00]} 3... c5 {[%clk 0:02:49.7]} 4. cxd5
{[%clk 0:02:59.5]} 4... exd5 {[%clk 0:02:49.2]} 5. Nf3 {[%clk 0:02:59.3]} 5...
Nc6 {[%clk 0:02:47.3]} 6. g3 {[%clk 0:02:59]} 6... Nf6 {[%clk 0:02:46.7]} 7. Bg2
{[%clk 0:02:59]} 7... Be7 {[%clk 0:02:45.3]} 8. O-O {[%clk 0:02:58.7]} 8... O-O
{[%clk 0:02:45.3]} 9. Bg5 {[%clk 0:02:57.6]} 9... c4 {[%clk 0:02:44.5]} 10. Rc1
{[%clk 0:02:49.8]} 10... Bf5 {[%clk 0:02:35.4]} 11. b3 {[%clk 0:02:49.1]} 11...
cxb3 {[%clk 0:01:51.5]} 12. axb3 {[%clk 0:02:44.4]} 12... h6 {[%clk 0:01:44.6]}
13. Bf4 {[%clk 0:02:39]} 13... Rc8 {[%clk 0:01:35.4]} 14. Ne5 {[%clk 0:02:29.4]}
14... Ba3 {[%clk 0:01:24.4]} 15. e4 {[%clk 0:01:31.7]} 15... Bxc1 {[%clk
0:01:18.7]} 16. exf5 {[%clk 0:01:24.3]} 16... Bxf4 {[%clk 0:01:08.6]} 17. gxf4
{[%clk 0:01:23.4]} 17... Qb6 {[%clk 0:00:55.6]} 18. Nxd5 {[%clk 0:01:16.4]}
18... Nxd5 {[%clk 0:00:43.3]} 19. Bxd5 {[%clk 0:01:02.1]} 19... Rcd8 {[%clk
0:00:40.1]} 20. Bxc6 {[%clk 0:00:42.9]} 20... bxc6 {[%clk 0:00:40]} 21. f6
{[%clk 0:00:41.8]} 21... Qxd4 {[%clk 0:00:23]} 22. Qg4 {[%clk 0:00:36]} 22... g5
{[%clk 0:00:19.6]} 23. Qh5 {[%clk 0:00:28.6]} 23... Qe4 {[%clk 0:00:06]} 24.
fxg5 {[%clk 0:00:19.2]} 24... hxg5 {[%clk 0:00:02.7]} 25. f3 {[%clk 0:00:16.2]}
25... Qh7 {[%clk 0:00:02.5]} 26. Qxg5+ {[%clk 0:00:16.2]} 26... Kh8 {[%clk
0:00:02.8]} 27. Kf2 {[%clk 0:00:13.9]} 27... Rd2+ {[%clk 0:00:02.9]} 28. Qxd2
{[%clk 0:00:12.6]} 28... Qxh2+ {[%clk 0:00:02.8]} 29. Ke1 {[%clk 0:00:11.9]}
29... Qxd2+ {[%clk 0:00:03.7]} 30. Kxd2 {[%clk 0:00:11.9]} 30... Rd8+ {[%clk
0:00:03.9]} 31. Ke3 {[%clk 0:00:11.6]} 31... Kg8 {[%clk 0:00:04.6]} 32. Ke4
{[%clk 0:00:11]} 32... Re8 {[%clk 0:00:04.1]} 33. Kf5 {[%clk 0:00:10.6]} 33...
Rb8 {[%clk 0:00:04]} 34. Rg1+ {[%clk 0:00:10.4]} 34... Kh7 {[%clk 0:00:04.1]}
35. Rh1+ {[%clk 0:00:10.6]} 35... Kg8 {[%clk 0:00:04.2]} 36. Rg1+ {[%clk
0:00:10]} 36... Kh7 {[%clk 0:00:04.8]} 37. Rb1 {[%clk 0:00:08.2]} 37... c5
{[%clk 0:00:04.1]} 38. Ke4 {[%clk 0:00:07.7]} 38... Kh6 {[%clk 0:00:03.3]} 39.
Kf5 {[%clk 0:00:07.8]} 39... Kh7 {[%clk 0:00:02.2]} 40. Rh1+ {[%clk 0:00:05.5]}
40... Kg8 {[%clk 0:00:02.3]} 41. Nc6 {[%clk 0:00:05.4]} 41... Rb6 {[%clk
0:00:01.8]} 42. Ne7+ {[%clk 0:00:05.7]} 42... Kf8 {[%clk 0:00:02]} 43. Rh8#
{[%clk 0:00:06]} 1-0